[Event "ESP-ch Seniors 2017"]
[Site "Altea"]
[Date "2017.10.14"]
[Round "8"]
[White "Aranaz Portugues, Jose Carlos"]
[Black "Acebal Muniz, Antonio"]
[Result "1/2-1/2"]
[ECO "D36"]
[WhiteElo "2159"]
[BlackElo "2091"]
[Annotator "RC"]
[PlyCount "179"]
[EventDate "2017.??.??"]
[EventType "swiss"]
[EventCountry "ESP"]
[SourceTitle "playchess.com"]
[Source "ChessBase"]
[SourceQuality "1"]
[TimeControl "5400+30"]

1. d4 {[%emt 0:00:00]} d5 {[%emt 0:01:23]} 2. c4 {[%emt 0:00:00]} e6 {[%emt 0:00:33]} 3. Nc3 {[%emt 0:00:00]} Nf6 {[%emt 0:00:32]} 4. cxd5 {[%emt 0:00:00]} exd5 {[%emt 0:01:42]} 5. Bg5 {[%emt 0:00:10]} c6 {[%emt 0:03:25]} 6. Qc2 {[%emt 0:00:44]} Be7 {[%emt 0:02:36]} 7. e3 {[%emt 0:00:11]} O-O {[%emt 0:00:58]} 8. Bd3 {[%emt 0:00:06]} Nbd7 {[%emt 0:01:28]} 9. Nf3 {[%emt 0:00:37]} Re8 {[%emt 0:01:20]} 10. O-O {[%emt 0:00:15]} Nf8 {[%emt 0:03:27]} 11. h3 {[%emt 0:00:06]} Ne4 {[%emt 0:02:36]} 12. Bf4 {[%emt 0:05:28]} f5 {[%emt 0:07:13]} 13. Qb3 {[%emt 0:05:13]} Qb6 {[%emt 0:06:59]} 14. Qc2 {[%emt 0:05:24]} Be6 {[%emt 0:08:03]} 15. Ne5 {[%emt 0:01:54]} g6 {[%emt 0:12:16]} 16. f3 {[%emt 0:08:40]} Nf6 {[%emt 0:01:20]} 17. g4 {[%emt 0:02:00]} fxg4 {[%emt 0:11:48]} 18. hxg4 {[%emt 0:01:00]} Kg7 {[%emt 0:03:20]} 19. Na4 {[%emt 0:06:33]} Qd8 {[%emt 0:01:46]} 20. Nc5 {[%emt 0:00:14]} Bxc5 {[%emt 0:09:45]} 21. Qxc5 {[%emt 0:02:50]} N6d7 {[%emt 0:05:18]} 22. Qc2 {[%emt 0:02:11]} Nxe5 {[%emt 0:03:45]} 23. Bxe5+ {[%emt 0:00:50]} Kg8 {[%emt 0:01:55]} 24. Qh2 {[%emt 0:00:22]} Nd7 {[%emt 0:01:29]} 25. Bxg6 {[%emt 0:03:19]} Re7 {[%emt 0:02:53]} 26. Bc7 {[%emt 0:06:06]} Qf8 {[%emt 0:01:24]} 27. Bh5 {[%emt 0:01:33]} Rg7 {[%emt 0:01:13]} 28. Bd6 {[%emt 0:08:48]} Qf6 {[%emt 0:01:49]} 29. Rf2 {[%emt 0:00:24]} Bf7 {[%emt 0:01:20]} 30. Bxf7+ {[%emt 0:00:55]} Rxf7 {[%emt 0:00:28]} 31. Bf4 {[%emt 0:03:18]} Qe6 {[%emt 0:00:59]} 32. Qh4 {[%emt 0:03:03]} Re8 {[%emt 0:00:55]} 33. Kg2 {[%emt 0:00:38]} Nf8 {[%emt 0:00:25]} 34. Be5 {[%emt 0:02:11]} Ng6 {[%emt 0:00:22]} 35. Qg5 {[%emt 0:00:49]} h6 {[%emt 0:00:28]} 36. Qxh6 {[%emt 0:00:06]} Nxe5 {[%emt 0:00:44]} 37. Qxe6 {[%emt 0:00:23]} Rxe6 {[%emt 0:00:14]} 38. dxe5 {[%emt 0:00:03]} Rxe5 {[%emt 0:00:09]} 39. Re2 {[%emt 0:01:09]} Rfe7 {[%emt 0:00:28]} 40. Kf2 {[%emt 0:00:28]} d4 {[%emt 0:00:24]} 41. e4 {[%emt 0:00:15]} c5 {[%emt 0:00:36]} 42. Rd2 {[%emt 0:02:24]} Rh7 {[%emt 0:00:46]} 43. Kg3 {[%emt 0:00:31]} b5 {[%emt 0:00:30]} 44. Re1 {[%emt 0:00:10]} Rhe7 {[%emt 0:00:22]} 45. b4 {[%emt 0:01:41]} cxb4 {[%emt 0:00:54]} 46. Rxd4 {[%emt 0:00:03]} a5 {[%emt 0:00:09]} 47. Rc1 {[%emt 0:01:46]} Kg7 {[%emt 0:00:46]} 48. Kf4 {[%emt 0:00:25]} R5e6 {[%emt 0:00:31]} 49. Rc5 {[%emt 0:00:24]} Rf7+ {[%emt 0:00:32]} 50. Rf5 {[%emt 0:03:03]} Rc6 {[%emt 0:00:02]} 51. Rxf7+ {[%emt 0:01:53]} Kxf7 {[%emt 0:00:02]} 52. Rd7+ {[%emt 0:00:08]} Kg6 {[%emt 0:00:37]} 53. g5 {[%emt 0:03:13]} Rc3 {[%emt 0:01:26]} 54. Kg4 {[%emt 0:00:34]} Rc2 {[%emt 0:00:33]} 55. Rd6+ {[%emt 0:00:18]} Kg7 {[%emt 0:00:22]} 56. Kf5 {[%emt 0:00:09]} Rxa2 {[%emt 0:00:12]} 57. Rd7+ {[%emt 0:01:41]} Kf8 {[%emt 0:00:09]} 58. Kf6 {[%emt 0:05:21]} Ke8 {[%emt 0:00:06]} 59. Rb7 {[%emt 0:00:06]} Rf2 {[%emt 0:00:27]} 60. Rxb5 {[%emt 0:00:21]} Rxf3+ {[%emt 0:00:05]} 61. Ke6 {[%emt 0:00:10]} Kf8 {[%emt 0:00:56]} 62. Rxa5 {[%emt 0:00:09]} b3 {[%emt 0:00:16]} 63. Rb5 {[%emt 0:01:04]} Kg7 {[%emt 0:00:23]} 64. Ke7 {[%emt 0:03:06]} Re3 {[%emt 0:00:36]} 65. e5 {[%emt 0:00:53]} b2 {[%emt 0:00:09]} 66. e6 {[%emt 0:00:16]} Re2 {[%emt 0:00:10]} 67. Kd7 {[%emt 0:00:43]} Rd2+ {[%emt 0:00:29]} 68. Ke8 {[%emt 0:00:22]} Re2 {[%emt 0:01:18]} 69. e7 {[%emt 0:02:17]} Rd2 {[%emt 0:00:15]} 70. Rb6 {[%emt 0:01:03]} Re2 {[%emt 0:00:48]} 71. Rb8 {[%emt 0:02:54]} Rd2 {[%emt 0:00:39]} 72. Rb7 {[%emt 0:00:21]} Kg8 {[%emt 0:00:49]} 73. Rb5 {[%emt 0:02:01]} Kg7 {[%emt 0:00:18]} 74. Rb6 {[%emt 0:00:04]} Re2 {[%emt 0:00:25]} 75. Kd7 {[%emt 0:00:03]} Rd2+ {[%emt 0:00:14]} 76. Ke8 {[%emt 0:03:21]} Re2 {[%emt 0:00:14]} 77. g6 {[%emt 0:02:44]} Rd2 {[%emt 0:00:48]} 78. Rb7 {[%emt 0:00:17]} Kg8 {[%emt 0:00:38]} 79. g7 {[%emt 0:00:14]} Rc2 {[%emt 0:00:52]} 80. Kd7 {[%emt 0:01:20]} Rd2+ {[%emt 0:00:28]} 81. Ke8 {[%emt 0:01:29]} Rc2 {[%emt 0:00:30]} 82. Rb3 {[%emt 0:00:16]} Rd2 {[%emt 0:00:42]} 83. Rb5 {[%emt 0:00:26]} Rc2 {[%emt 0:00:37]} 84. Kd7 {[%emt 0:01:59]} Rd2+ {[%emt 0:00:07]} 85. Ke6 {[%emt 0:00:29]} Re2+ {[%emt 0:00:25]} 86. Kf6 {[%emt 0:00:10]} Rf2+ {[%emt 0:00:32]} 87. Kg5 {[%emt 0:00:33]} Rg2+ {[%emt 0:00:44]} 88. Kf4 {[%emt 0:00:16]} Re2 {[%emt 0:00:37]} 89. Kg5 {[%emt 0:01:56]} Rxe7 {[%emt 0:00:55]} 90. Rxb2 1/2-1/2

[Event "ESP-ch Seniors 2017"]
[Site "Altea"]
[Date "2017.10.14"]
[Round "8"]
[White "Serra Olives, Tomas"]
[Black "Simon Padros, Emili"]
[Result "1/2-1/2"]
[ECO "C12"]
[WhiteElo "2146"]
[BlackElo "2153"]
[Annotator "ChessBase"]
[PlyCount "66"]
[EventDate "2017.??.??"]
[EventType "swiss"]
[EventCountry "ESP"]
[SourceTitle "playchess.com"]
[Source "ChessBase"]
[SourceQuality "1"]
[TimeControl "5400+30"]

1. e4 {[%emt 0:00:00]} e6 {[%emt 0:00:14]} 2. d4 {[%emt 0:00:00]} d5 {[%emt 0:00:08]} 3. Nc3 {[%emt 0:00:00]} Nf6 {[%emt 0:00:17]} 4. Bg5 {[%emt 0:00:04]} Bb4 {[%emt 0:00:19]} 5. e5 {[%emt 0:00:18]} h6 {[%emt 0:00:11]} 6. Bd2 {[%emt 0:00:16]} Bxc3 {[%emt 0:00:13]} 7. bxc3 {[%emt 0:00:14]} Ne4 {[%emt 0:00:16]} 8. Bd3 {[%emt 0:00:15]} Nxd2 {[%emt 0:00:44]} 9. Qxd2 {[%emt 0:00:10]} c5 {[%emt 0:02:29]} 10. Nf3 {[%emt 0:01:07]} O-O {[%emt 0:01:50]} 11. O-O {[%emt 0:00:09]} b6 {[%emt 0:02:06]} 12. g4 {[%emt 0:08:41]} Ba6 {[%emt 0:06:11]} 13. Bxa6 {[%emt 0:00:11]} Nxa6 {[%emt 0:00:02]} 14. Kh1 {[%emt 0:03:59]} Nc7 {[%emt 0:24:55]} 15. Rg1 {[%emt 0:05:11]} f6 {[%emt 0:03:55]} 16. Raf1 {[%emt 0:01:39]} cxd4 {[%emt 0:03:22]} 17. cxd4 {[%emt 0:00:19]} Rc8 {[%emt 0:01:42]} 18. Nh4 {[%emt 0:05:35]} Ne8 {[%emt 0:04:59]} 19. f4 {[%emt 0:03:37]} Qc7 {[%emt 0:08:10]} 20. Rg2 {[%emt 0:19:36]} fxe5 {[%emt 0:02:49]} 21. Ng6 {[%emt 0:00:44]} Rf6 {[%emt 0:00:09]} 22. Nxe5 {[%emt 0:03:59]} Nd6 {[%emt 0:00:33]} 23. Qd3 {[%emt 0:04:38]} Qc3 {[%emt 0:03:54]} 24. Nd7 {[%emt 0:03:13]} Rf7 {[%emt 0:02:25]} 25. Qg6 {[%emt 0:00:42]} Qe3 {[%emt 0:04:23]} 26. Ne5 {[%emt 0:02:39]} Rf6 {[%emt 0:00:33]} 27. Qd3 {[%emt 0:00:12]} Qxd3 {[%emt 0:00:59]} 28. cxd3 {[%emt 0:00:03]} Nb5 {[%emt 0:01:35]} 29. h4 {[%emt 0:02:21]} Nxd4 {[%emt 0:01:47]} 30. g5 {[%emt 0:00:08]} hxg5 {[%emt 0:00:10]} 31. hxg5 {[%emt 0:00:05]} Rff8 {[%emt 0:00:34]} 32. g6 {[%emt 0:03:29]} Nf5 {[%emt 0:00:46]} 33. Re1 {[%emt 0:06:36]} Nh6 {[%emt 0:01:47]} 1/2-1/2

[Event "ESP-ch Seniors 2017"]
[Site "Altea"]
[Date "2017.10.14"]
[Round "8"]
[White "Bautista Sanchez, Joan"]
[Black "Gonzalez Rivera, Eduardo"]
[Result "1/2-1/2"]
[ECO "A06"]
[WhiteElo "2123"]
[BlackElo "2020"]
[Annotator "NA"]
[PlyCount "57"]
[EventDate "2017.??.??"]
[EventType "swiss"]
[EventCountry "ESP"]
[SourceTitle "playchess.com"]
[Source "ChessBase"]
[SourceQuality "1"]
[TimeControl "5400+30"]

1. Nf3 {[%emt 0:00:00]} d5 {[%emt 0:00:05]} 2. c3 {[%emt 0:00:18]} c5 {[%emt 0:00:21]} 3. g3 {[%emt 0:00:31]} Nc6 {[%emt 0:00:06]} 4. d4 {[%emt 0:00:13]} e6 {[%emt 0:01:39]} 5. Bg2 {[%emt 0:00:36]} Nf6 {[%emt 0:00:06]} 6. O-O {[%emt 0:01:00]} b6 {[%emt 0:00:56]} 7. Bg5 {[%emt 0:03:32]} Be7 {[%emt 0:01:01]} 8. Nbd2 {[%emt 0:04:52]} cxd4 {[%emt 0:03:18]} 9. cxd4 {[%emt 0:01:36]} Bb7 {[%emt 0:00:28]} 10. Rc1 {[%emt 0:03:29]} O-O {[%emt 0:00:31]} 11. Qa4 {[%emt 0:02:25]} Rc8 {[%emt 0:11:13]} 12. e3 {[%emt 0:10:30]} a6 {[%emt 0:05:41]} 13. Bxf6 {[%emt 0:03:00]} Bxf6 {[%emt 0:00:20]} 14. b4 {[%emt 0:00:36]} b5 {[%emt 0:02:14]} 15. Qb3 {[%emt 0:00:39]} a5 {[%emt 0:00:28]} 16. bxa5 {[%emt 0:01:44]} Qxa5 {[%emt 0:02:14]} 17. Rc5 {[%emt 0:00:28]} Na7 {[%emt 0:01:35]} 18. Rfc1 {[%emt 0:03:17]} Be7 {[%emt 0:00:02]} 19. Rxc8 {[%emt 0:01:40]} Rxc8 {[%emt 0:00:02]} 20. Rxc8+ {[%emt 0:00:25]} Nxc8 {[%emt 0:00:01]} 21. Qc2 {[%emt 0:03:10]} Nd6 {[%emt 0:12:46]} 22. Nb3 {[%emt 0:03:50]} Qb6 {[%emt 0:00:40]} 23. Ne5 {[%emt 0:05:01]} Nc4 {[%emt 0:02:42]} 24. Nd7 {[%emt 0:02:38]} Qa7 {[%emt 0:00:55]} 25. Ndc5 {[%emt 0:00:52]} Bxc5 {[%emt 0:00:02]} 26. Nxc5 {[%emt 0:01:02]} Bc6 {[%emt 0:00:12]} 27. Nd3 {[%emt 0:05:25]} Qa3 28. Qb3 b4 29. Qc2 1/2-1/2

[Event "ESP-ch Seniors 2017"]
[Site "Altea"]
[Date "2017.10.14"]
[Round "8"]
[White "Pastor Pons, Pedro Maria"]
[Black "Roche Simon, Manuel Angel"]
[Result "0-1"]
[ECO "B59"]
[WhiteElo "2077"]
[BlackElo "2216"]
[Annotator "NA"]
[PlyCount "66"]
[EventDate "2017.??.??"]
[EventType "swiss"]
[EventCountry "ESP"]
[SourceTitle "playchess.com"]
[Source "ChessBase"]
[SourceQuality "1"]
[TimeControl "5400+30"]

1. e4 {[%emt 0:00:00]} c5 {[%emt 0:00:07]} 2. Nf3 {[%emt 0:00:32]} Nc6 {[%emt 0:00:10]} 3. d4 {[%emt 0:00:07]} cxd4 {[%emt 0:00:09]} 4. Nxd4 {[%emt 0:00:08]} Nf6 {[%emt 0:00:10]} 5. Nc3 {[%emt 0:00:14]} d6 {[%emt 0:00:17]} 6. Be2 {[%emt 0:01:23]} e5 {[%emt 0:00:34]} 7. Nb3 {[%emt 0:01:07]} Be7 {[%emt 0:00:18]} 8. O-O {[%emt 0:00:26]} O-O {[%emt 0:00:18]} 9. f4 {[%emt 0:00:37]} a5 {[%emt 0:01:00]} 10. a4 {[%emt 0:07:58]} Nb4 {[%emt 0:01:30]} 11. Bf3 {[%emt 0:04:33]} Be6 {[%emt 0:03:45]} 12. f5 {[%emt 0:01:13] B59: Sizilianisch (Boleslawski-Variante)} Bc4 {[%emt 0:00:25]} 13. Re1 {[%emt 0:00:05]} (13. Be2 d5 14. exd5 Bxb3 15. cxb3 Nbxd5 16. Nxd5 Qxd5 17. Qxd5 Nxd5 18. Bc4 Rfd8 19. Rd1 Bc5+ {½-½ (50) Rizouk,A (2489)-Gallego Alcaraz,A (2428) Barcelona 2017}) 13... Nxc2 {[%emt 0:01:13]} 14. Qxc2 {[%emt 0:02:36]} Qb6+ {[%emt 0:00:18]} 15. Be3 {[%emt 0:00:06]} Qxb3 {[%emt 0:00:07]} 16. Qd2 {[%emt 0:00:13]} Rfd8 {[%emt 0:05:52]} 17. Qf2 $146 {[%emt 0:06:37]} ({Vorgänger:} 17. Rad1 Qb4 18. g4 d5 19. Nxd5 Nxd5 20. exd5 Qxd2 21. Bxd2 {0-1 (46) Cortlever,N-Kottnauer,C Prague 1949}) 17... d5 {[%emt 0:05:15]} 18. Bb6 {[%emt 0:01:37]} dxe4 {[%emt 0:06:07]} 19. Nxe4 {[%emt 0:01:46]} Nxe4 {[%emt 0:02:37]} 20. Bxe4 {[%emt 0:03:56]} Rd7 {[%emt 0:05:23]} 21. f6 {[%emt 0:00:11]} gxf6 {[%emt 0:05:34]} 22. Bc2 {[%emt 0:16:19]} Qb4 {[%emt 0:06:17]} 23. Be3 {[%emt 0:04:11]} Be6 {[%emt 0:03:09]} 24. Kh1 {[%emt 0:01:59]} Kh8 {[%emt 0:07:27]} 25. Bh6 {[%emt 0:00:30]} Qd4 {[%emt 0:02:43]} 26. Qf3 {[%emt 0:01:52]} Qg4 {[%emt 0:00:43]} 27. Qf2 {[%emt 0:02:15]} Rad8 {[%emt 0:03:35]} 28. Rf1 {[%emt 0:01:34]} Rg8 {[%emt 0:03:23]} 29. Rae1 {[%emt 0:00:59]} Rd4 {[%emt 0:08:29]} 30. Bd2 $2 {[%emt 0:01:08]} (30. Be3 Bd5 31. Rg1) 30... Bd5 {[%emt 0:01:24]} 31. Rg1 {[%emt 0:00:14] [#]} Qh4 $2 {[%emt 0:02:15]} (31... Bxg2+ $1 {[%mdl 512]} 32. Rxg2 (32. Qxg2 Qxg2+) 32... Qxg2+ 33. Qxg2 Rxg2) 32. Qxh4 {[%emt 0:00:57]} Rxh4 {[%emt 0:00:11]} 33. Bxa5 {[%emt 0:00:02]} (33. Be3 {keeps fighting.}) 33... Bc5 {[%emt 0:00:34]} 0-1

[Event "ESP-ch Seniors 2017"]
[Site "Altea"]
[Date "2017.10.14"]
[Round "8"]
[White "Coll Sola, Joan"]
[Black "Dominguez Rueda, Juan"]
[Result "1/2-1/2"]
[ECO "C41"]
[WhiteElo "2045"]
[BlackElo "2135"]
[Annotator "RC"]
[PlyCount "108"]
[EventDate "2017.??.??"]
[EventType "swiss"]
[EventCountry "ESP"]
[SourceTitle "playchess.com"]
[Source "ChessBase"]
[SourceQuality "1"]
[TimeControl "5400+30"]

1. e4 {[%emt 0:00:00]} e5 {[%emt 0:00:07]} 2. Nf3 {[%emt 0:00:00]} d6 {[%emt 0:00:05]} 3. d4 {[%emt 0:00:13]} Nd7 {[%emt 0:00:07]} 4. dxe5 {[%emt 0:01:18]} dxe5 {[%emt 0:00:10]} 5. Bc4 {[%emt 0:00:39]} c6 {[%emt 0:00:19]} 6. O-O {[%emt 0:03:42]} Be7 {[%emt 0:01:19]} 7. Ng5 {[%emt 0:03:40]} Bxg5 {[%emt 0:02:20]} 8. Qh5 {[%emt 0:00:05]} g6 {[%emt 0:00:46]} 9. Qxg5 {[%emt 0:00:08]} Qxg5 {[%emt 0:00:23]} 10. Bxg5 {[%emt 0:00:05]} Nc5 {[%emt 0:03:58]} 11. Nd2 {[%emt 0:09:56]} Ne6 {[%emt 0:01:48]} 12. Be3 {[%emt 0:06:44]} Nf6 {[%emt 0:03:53]} 13. Nf3 {[%emt 0:06:48]} Nxe4 {[%emt 0:01:15]} 14. Nxe5 {[%emt 0:00:27]} Nd6 {[%emt 0:07:22]} 15. Bb3 {[%emt 0:05:21]} Nf5 {[%emt 0:03:42]} 16. Rfe1 {[%emt 0:03:45]} O-O {[%emt 0:04:05]} 17. Rad1 {[%emt 0:04:10]} Nxe3 {[%emt 0:00:38]} 18. Rxe3 {[%emt 0:00:44]} Nc5 {[%emt 0:01:27]} 19. Bc4 {[%emt 0:08:33]} Kg7 {[%emt 0:13:09]} 20. b4 {[%emt 0:04:36]} Ne6 {[%emt 0:14:32]} 21. g3 {[%emt 0:03:59]} a5 {[%emt 0:04:16]} 22. b5 {[%emt 0:01:28]} cxb5 {[%emt 0:00:31]} 23. Bxb5 {[%emt 0:00:11]} Nc5 {[%emt 0:02:15]} 24. Bc4 {[%emt 0:02:55]} Bf5 {[%emt 0:00:59]} 25. Nd3 {[%emt 0:07:18]} Rad8 {[%emt 0:03:15]} 26. Rb1 {[%emt 0:01:42]} Nxd3 {[%emt 0:06:27]} 27. cxd3 {[%emt 0:01:09]} Rd7 {[%emt 0:01:42]} 28. Kf1 {[%emt 0:04:21]} Rc7 {[%emt 0:05:56]} 29. Rb5 {[%emt 0:00:33]} a4 {[%emt 0:00:09]} 30. Rbe5 {[%emt 0:04:06]} Kf6 {[%emt 0:05:38]} 31. Rb5 {[%emt 0:02:25]} Bd7 {[%emt 0:00:38]} 32. Rb6+ {[%emt 0:00:19]} Kg7 {[%emt 0:00:39]} 33. Ke1 {[%emt 0:01:36]} Re8 {[%emt 0:02:38]} 34. Kd2 {[%emt 0:02:12]} Kf8 {[%emt 0:01:09]} 35. Rxe8+ {[%emt 0:01:50]} Kxe8 {[%emt 0:01:36]} 36. Bd5 {[%emt 0:00:36]} Bc8 {[%emt 0:04:25]} 37. Rb4 {[%emt 0:00:50]} a3 {[%emt 0:02:56]} 38. Rc4 {[%emt 0:04:12]} Rxc4 {[%emt 0:00:40]} 39. dxc4 {[%emt 0:00:32]} Ke7 {[%emt 0:01:36]} 40. Kc3 {[%emt 0:00:05]} f6 {[%emt 0:00:12]} 41. Kb4 {[%emt 0:00:09]} Kd6 {[%emt 0:00:13]} 42. Kxa3 {[%emt 0:00:49]} Kc5 {[%emt 0:00:07]} 43. Bg8 {[%emt 0:01:17]} h6 {[%emt 0:00:02]} 44. Kb3 {[%emt 0:01:59]} b6 {[%emt 0:00:32]} 45. Kc3 {[%emt 0:00:28]} g5 {[%emt 0:00:23]} 46. a3 {[%emt 0:00:25]} Bh3 {[%emt 0:00:27]} 47. f4 {[%emt 0:02:43]} Bf1 {[%emt 0:00:11]} 48. h4 {[%emt 0:00:22]} Be2 {[%emt 0:00:25]} 49. fxg5 {[%emt 0:00:31]} fxg5 {[%emt 0:00:03]} 50. Bf7 {[%emt 0:00:22]} gxh4 {[%emt 0:00:22]} 51. gxh4 {[%emt 0:00:01]} Bf1 {[%emt 0:00:20]} 52. Kb3 {[%emt 0:00:17]} Be2 {[%emt 0:00:24]} 53. Kc3 {[%emt 0:00:19]} Bf1 {[%emt 0:00:31]} 54. Bg8 {[%emt 0:00:07]} Be2 {[%emt 0:00:15] Kd4+} 1/2-1/2

[Event "ESP-ch Seniors 2017"]
[Site "Altea"]
[Date "2017.10.14"]
[Round "8"]
[White "Fernandez Vicente, Carmelo"]
[Black "Vallbona Domingo, Joan"]
[Result "1/2-1/2"]
[ECO "A15"]
[WhiteElo "2044"]
[BlackElo "1889"]
[Annotator "NA"]
[PlyCount "51"]
[EventDate "2017.??.??"]
[EventType "swiss"]
[EventCountry "ESP"]
[SourceTitle "playchess.com"]
[Source "ChessBase"]
[SourceQuality "1"]
[TimeControl "5400+30"]

1. c4 {[%emt 0:00:00]} Nf6 {[%emt 0:00:12]} 2. g3 {[%emt 0:00:00]} e5 {[%emt 0:00:42]} 3. Bg2 {[%emt 0:00:25]} d5 {[%emt 0:00:14]} 4. cxd5 {[%emt 0:00:18]} Nxd5 {[%emt 0:00:10]} 5. Nc3 {[%emt 0:00:11]} Nb6 {[%emt 0:00:21]} 6. Nf3 {[%emt 0:01:03]} Nc6 {[%emt 0:00:07]} 7. a3 {[%emt 0:00:48]} Be7 {[%emt 0:03:18]} 8. b4 {[%emt 0:02:32]} Be6 {[%emt 0:04:34]} 9. Rb1 {[%emt 0:03:50]} f6 {[%emt 0:04:44]} 10. O-O {[%emt 0:02:51]} O-O {[%emt 0:01:00]} 11. d3 {[%emt 0:03:23]} a5 {[%emt 0:06:30]} 12. b5 {[%emt 0:00:59]} Nd4 {[%emt 0:00:29]} 13. Nd2 {[%emt 0:01:54]} Rb8 {[%emt 0:05:40] A29: English Opening: Four Knights Variation with 4 g3} (13... Qc8 14. e3 Nf5 15. Qc2 a4 16. Rd1 Nd6 17. Nde4 Nxe4 18. Nxe4 Bd5 19. Nc5 Bxg2 20. Kxg2 Bxc5 21. Qxc5 {½-½ (85) Svidler,P (2757)-Giri,A (2793) Moscow 2016}) 14. Re1 {[%emt 0:04:47]} Qd7 {[%emt 0:02:06]} 15. e3 $146 {[%emt 0:02:05]} ({Predecessor:} 15. Nc4 Nxc4 16. dxc4 Bxc4 17. Qa4 Bf7 18. e3 Ne6 19. Rd1 Bd6 20. b6 Qxa4 21. Nxa4 {½-½ (39) Karabakhtsian,A (2302)-Gabrielian,A (2488) Soukhumi 2007}) 15... Nf5 {[%emt 0:01:06]} 16. Qe2 {[%emt 0:07:10]} Rfe8 {[%emt 0:09:10]} 17. Nc4 {[%emt 0:05:30]} Nxc4 {[%emt 0:15:14]} 18. dxc4 {[%emt 0:00:13]} c6 {[%emt 0:00:43]} 19. Rd1 {[%emt 0:02:47]} Qc7 {[%emt 0:00:28]} 20. b6 {[%emt 0:05:47]} Qc8 {[%emt 0:00:04]} 21. Ne4 {[%emt 0:01:43]} Rd8 {[%emt 0:03:02]} 22. Bb2 {[%emt 0:09:29]} Nd6 {[%emt 0:03:57]} 23. Nxd6 {[%emt 0:04:38]} Rxd6 {[%emt 0:01:22]} 24. Qc2 {[%emt 0:02:55]} Qf8 {[%emt 0:00:57]} 25. Rxd6 {[%emt 0:03:32]} Bxd6 {[%emt 0:05:41]} 26. a4 $15 {[%emt 0:00:28]} 1/2-1/2

[Event "ESP-ch Seniors 2017"]
[Site "Altea"]
[Date "2017.10.14"]
[Round "8"]
[White "Buxade Roca, Guillermo"]
[Black "Vinal Gutierrez, Pedro"]
[Result "1/2-1/2"]
[ECO "A06"]
[WhiteElo "2025"]
[BlackElo "2041"]
[Annotator "NA"]
[PlyCount "41"]
[EventDate "2017.??.??"]
[EventType "swiss"]
[EventCountry "ESP"]
[SourceTitle "playchess.com"]
[Source "ChessBase"]
[SourceQuality "1"]
[TimeControl "5400+30"]

1. Nf3 {[%emt 0:00:00]} d5 {[%emt 0:01:07]} 2. g3 {[%emt 0:00:00]} Bf5 {[%emt 0:00:23]} 3. Bg2 {[%emt 0:00:24]} e6 {[%emt 0:00:20]} 4. d3 {[%emt 0:04:25]} h6 {[%emt 0:00:29]} 5. O-O {[%emt 0:00:41]} Nf6 {[%emt 0:00:16]} 6. Nbd2 {[%emt 0:03:35]} Bc5 {[%emt 0:00:29]} 7. c4 {[%emt 0:01:25]} c6 {[%emt 0:00:47]} 8. a3 {[%emt 0:07:36]} O-O {[%emt 0:02:18]} 9. b4 {[%emt 0:00:38]} Be7 {[%emt 0:01:20]} 10. Bb2 {[%emt 0:02:34]} Nbd7 {[%emt 0:01:20]} 11. Qb3 {[%emt 0:05:53]} Bh7 {[%emt 0:04:04]} 12. Rfe1 {[%emt 0:01:30]} a5 {[%emt 0:00:56]} 13. e4 {[%emt 0:04:34]} axb4 {[%emt 0:01:12]} 14. axb4 {[%emt 0:00:47]} Rxa1 {[%emt 0:00:22]} 15. Bxa1 {[%emt 0:02:06]} dxe4 {[%emt 0:03:00]} 16. dxe4 {[%emt 0:01:30]} Qb6 {[%emt 0:01:44]} 17. e5 {[%emt 0:04:26]} Ne8 {[%emt 0:01:52]} 18. c5 {[%emt 0:03:42]} Qa7 {[%emt 0:01:13]} 19. Bd4 {[%emt 0:02:20]} Nc7 {[%emt 0:00:24]} 20. Ra1 {[%emt 0:02:26]} Qb8 {[%emt 0:00:18]} 21. Nc4 {[%emt 0:01:09]} 1/2-1/2

[Event "ESP-ch Seniors 2017"]
[Site "Altea"]
[Date "2017.10.14"]
[Round "8"]
[White "Zotes Flecha, Luis"]
[Black "Fernandez Perez, Josep"]
[Result "0-1"]
[ECO "A20"]
[WhiteElo "1814"]
[BlackElo "2045"]
[Annotator "NA"]
[PlyCount "90"]
[EventDate "2017.??.??"]
[EventType "swiss"]
[EventCountry "ESP"]
[SourceTitle "playchess.com"]
[Source "ChessBase"]
[SourceQuality "1"]
[TimeControl "5400+30"]

1. c4 {[%emt 0:00:00]} e5 {[%emt 0:00:13]} 2. e4 {[%emt 0:00:00]} d6 {[%emt 0:00:22]} 3. Nc3 {[%emt 0:00:00]} Nc6 {[%emt 0:01:02]} 4. d3 {[%emt 0:00:14]} g6 {[%emt 0:01:18]} 5. f4 {[%emt 0:00:32]} Bg7 {[%emt 0:00:13]} 6. Nf3 {[%emt 0:00:15]} Nge7 {[%emt 0:00:49]} 7. Be2 {[%emt 0:00:16] A10: English Opening: Unusual Replies for Black} O-O {[%emt 0:00:13]} 8. O-O {[%emt 0:00:13]} h6 $146 {[%emt 0:05:00]} ({Predecessor:} 8... f5 9. fxe5 dxe5 10. Nd5 f4 11. b3 Qd6 12. a4 a5 13. Kh1 Nb4 14. Bb2 Nexd5 15. cxd5 {0-1 (65) Delithanasis,D (2215)-Grivas,E (2505) Ano Liosia 1993}) 9. h3 {[%emt 0:00:46]} f5 {[%emt 0:00:19]} 10. fxe5 {[%emt 0:02:59]} dxe5 {[%emt 0:02:11]} 11. Nd5 {[%emt 0:03:33]} Nxd5 {[%emt 0:05:30]} 12. cxd5 {[%emt 0:00:21]} Ne7 {[%emt 0:02:20]} 13. Qb3 {[%emt 0:00:48]} Kh7 {[%emt 0:00:17]} 14. Bd2 {[%emt 0:00:42]} c6 {[%emt 0:00:36]} 15. dxc6 {[%emt 0:10:29]} Nxc6 {[%emt 0:01:48]} 16. Bc3 {[%emt 0:01:34]} Qe7 {[%emt 0:02:24]} 17. a3 {[%emt 0:03:03]} Be6 {[%emt 0:02:32]} 18. Qd1 {[%emt 0:01:04]} f4 {[%emt 0:03:05]} 19. Qe1 {[%emt 0:00:42]} g5 {[%emt 0:09:46]} 20. Nh2 {[%emt 0:01:30]} Rfd8 {[%emt 0:05:51]} 21. Rc1 {[%emt 0:04:20]} Rac8 {[%emt 0:04:27]} 22. Qf2 {[%emt 0:07:41]} Qd7 {[%emt 0:06:09]} 23. Rfd1 {[%emt 0:02:23]} Nd4 {[%emt 0:02:06]} 24. Bxd4 {[%emt 0:00:39]} Rxc1 {[%emt 0:05:58]} 25. Rxc1 {[%emt 0:00:27]} Qxd4 {[%emt 0:00:09]} 26. Qxd4 {[%emt 0:00:29]} Rxd4 {[%emt 0:00:14]} 27. Rc7 {[%emt 0:00:32]} Rd7 {[%emt 0:00:11]} 28. Rxd7 {[%emt 0:00:54]} Bxd7 {[%emt 0:00:43]} 29. Kf2 {[%emt 0:02:40]} Bf8 {[%emt 0:02:06]} 30. Bd1 {[%emt 0:02:05]} Bc5+ {[%emt 0:00:52]} 31. Ke2 {[%emt 0:00:11]} Bd4 {[%emt 0:00:41]} 32. b3 {[%emt 0:00:26] [#]} Kg6 {[%emt 0:03:00]} ({Black should try} 32... Bc3 $1 33. b4 Kg6) 33. Kd2 {[%emt 0:00:45]} h5 {[%emt 0:00:29]} 34. Nf3 {[%emt 0:00:40]} Ba1 {[%emt 0:01:56]} 35. Kc2 $2 {[%emt 0:02:25]} (35. Nh2 $17) 35... g4 {[%emt 0:01:16]} 36. hxg4 {[%emt 0:00:41]} hxg4 {[%emt 0:00:44]} 37. Ng1 {[%emt 0:02:31]} Kg5 {[%emt 0:03:07]} 38. Kd2 {[%emt 0:01:52]} Kh4 {[%emt 0:01:39]} 39. Ke2 {[%emt 0:00:38]} Bd4 {[%emt 0:01:51]} 40. Kf1 {[%emt 0:00:28]} Bxg1 {[%emt 0:00:55]} 41. Kxg1 {[%emt 0:00:06]} Kg3 {[%emt 0:00:15]} 42. Kf1 $19 {[%emt 0:01:40]} Bb5 {[%emt 0:02:40]} 43. Bc2 {[%emt 0:00:22]} f3 {[%emt 0:00:37]} 44. gxf3 {[%emt 0:00:31]} gxf3 {[%emt 0:00:35]} 45. a4 {[%emt 0:00:04]} Bd7 {[%emt 0:00:27]} 0-1